Cogmind - Beta 16 @@@ ROGUE MODE // 2026.02.06 @ 23:18:20 Player: MrProgressor Result: Destroyed by NW-ZL1(R) with Subdweller Laser Performance ------------- Evolutions (0) 0 Regions Visited (3) 600 Robots Destroyed (18) 90 Value Destroyed (352) 352 Prototype IDs (1) 20 Alien Tech Used (0) 0 Bonus (0) 0 TOTAL SCORE: 1062 Bonus ------- None Cogmind --------- Core Integrity 0/250 Matter 252/300 Energy 100/100 System Corruption 0% Temperature Cool (6) Movement Core (750) Ox14 Location -10/Subcaves Parts ------- > --- POWER (1) -------- (None) > --- PROPULSION (2) --- (None) > --- UTILITY (2) ------ High-capacity Storage Unit Structural Scanner > --- WEAPON (2) ------- Assault Rifle > --- INVENTORY (20) --- Ion Engine Wheel Wheel Wheel Wheel Compact Wheel Compact Wheel Disposable Heat Sink High-capacity Storage Unit High-capacity Storage Unit Huge Storage Unit High-capacity Matter Pod (200) High-capacity Matter Pod (200) Subdweller Optics Faulty Experimental Sensor Array Seismic Detector Rocket Launcher Mining Laser Peak State ------------ > --- POWER ------------ Ion Engine > --- PROPULSION ------- Light Treads Light Treads > --- UTILITY ---------- High-capacity Storage Unit Experimental Sensor Array > --- WEAPON ----------- Medium Laser Beam Cannon > --- INVENTORY -------- Ion Engine Ion Engine Light Treads Light Treads Wheel Wheel Wheel Wheel Compact Wheel Compact Wheel High-capacity Storage Unit High-capacity Storage Unit Medium Matter Pod Structural Scanner Structural Scanner Seismic Detector Beam Cannon Assault Rifle Rocket Launcher Mining Laser [Rating: 17] Favorites ----------- Power Ion Engine Engine Ion Engine Propulsion Light Treads Treads Light Treads Leg Aluminum Leg Utility High-capacity Storage Unit Device Seismic Detector Storage High-capacity Storage Unit Weapon Medium Laser Energy Gun Medium Laser Energy Cannon Beam Cannon Ballistic Gun Battle Rifle Ballistic Cannon Battle Cannon Build | -11 -10 -10 -10 ------- Run | Yrd Mat Min Sub Slots Evolved . | . . . . Power . | . . . . Propulsion . | . . . . Utility . | . . . . Weapon . | . . . . Parts Attached 15 | 4 2 2 7 Power 1 | . . . 1 Engine 1 | . . . 1 Core . | . . . . Reactor . | . . . . Propulsion 4 | 2 . 1 1 Treads 4 | 2 . 1 1 Leg . | . . . . Wheel . | . . . . Hover . | . . . . Flight . | . . . . Utility 5 | 2 1 1 1 Device 4 | 2 . 1 1 Storage 1 | . 1 . . Processor . | . . . . Hackware . | . . . . Protection . | . . . . Artifact . | . . . . Weapon 5 | . 1 . 4 Energy Gun . | . . . . Energy Cannon 2 | . 1 . 1 Ballistic Gun 2 | . . . 2 Ballistic Cannon 1 | . . . 1 Launcher . | . . . . Special Weapon . | . . . . Impact Weapon . | . . . . Slashing Weapon . | . . . . Piercing Weapon . | . . . . Special Melee Weapon . | . . . . Unidentified Prototypes 1 | . . 1 . Parts Lost 9 | . 1 . 8 Power 1 | . . . 1 Propulsion 3 | . . . 3 Utility . | . . . . Weapon 5 | . 1 . 4 Highest Loss Streak 6 | . 1 . 6 To Critical Strikes 1 | . . . 1 Average Backups 17 | 5 13 19 19 Power 1 | 1 1 2 1 Propulsion 6 | 3 5 7 6 Utility 5 | . 3 6 7 Weapon 3 | 1 2 4 3 Tool/Special . | . . . . Unused Backups 34 | 8 4 4 18 Power 4 | 1 1 . 2 Propulsion 10 | 4 . . 6 Utility 11 | 1 1 2 7 Weapon 9 | 2 2 2 3 Tool/Special . | . . . . Average Slot Usage (%) 99 | . 98 100 99 Engine 13 | . 14 14 13 Treads 27 | . 28 28 27 Device 13 | . 12 14 14 Storage 14 | . 14 14 14 Energy Gun 16 | . 22 14 13 Energy Cannon 10 | . 5 14 11 Ballistic Gun 1 | . . . 3 Peak Build Rating 17 | 7 8 17 10 Average Rating 8 | 6 7 8 9 On Entrance 7 | 6 7 8 9 Avg Prop Armor Cover (%) . | . . . . Naked Turns . | . . . . Heaviest Build 51 | 14 51 51 51 Greatest Support 40 | 40 40 40 40 Greatest Overweight (x) 1 | . 1 1 1 Average Overweight (x) . | . . 1 1 Largest Inventory Capacity 20 | 8 20 20 20 Average Capacity 19 | 8 18 20 20 Most Carried 20 | 8 18 20 20 Average Carried 17 | 5 13 19 19 Final Capacity 20 | 8 20 20 20 Final Carried 20 | 8 18 20 18 Class Distribution -------------------- 100% | Mutant Dominant Class ---------------- Mutant | -10/Materials Mutant | -10/Mines Mutant | -10/Subcaves Resources | -11 -10 -10 -10 ----------- Run | Yrd Mat Min Sub Matter Collected 470 | 240 30 140 60 Remotely . | . . . . Salvage Created 517 | 80 263 . 174 Parts 32 | 12 13 . 7 Haulers Intercepted . | . . . . Recyclers Shooed 3 | 1 2 . . Parts Field Recycled . | . . . . Retrieved Matter . | . . . . Parts Self-Destructed . | . . . . Prevented . | . . . . Parts Restored . | . . . . Kills | -11 -10 -10 -10 ------- Run | Yrd Mat Min Sub Combat Hostiles Destroyed 11 | . 7 . 4 Guns 8 | . 6 . 2 Cannons 3 | . 1 . 2 Classes Destroyed 7 | 2 4 . 1 Worker 1 | 1 . . . Tunneler 4 | 3 1 . . Operator 1 | . 1 . . Watcher 1 | . 1 . . Swarmer 5 | . 5 . . Grunt 2 | . 2 . . Subdweller 4 | . . . 4 Best Kill Streak 4 | 3 4 . 2 Combat Bots Only 3 | . 3 . 2 Max Kills in Single Turn 1 | 1 1 . 1 Gunslinging . | . . . . Exploded . | . . . . Melee . | . . . . Uniques/NPCs Destroyed . | . . . . Combat | -11 -10 -10 -10 -------- Run | Yrd Mat Min Sub Hostile Shots Fired 123 | . 56 . 67 Missed 23 | . 9 . 14 Hits 100 | . 47 . 53 Projectile 100 | . 47 . 53 Critical Strikes 1 | . . . 1 Damage Taken 1579 | . 441 . 1138 Core 256 | . 31 . 225 Absorbed by Shields . | . . . . Core Remaining (%) 100 | 100 . . . Volleys Fired 68 | 8 38 . 22 Largest 2 | 2 2 . 2 Hottest 110 | 90 110 . 110 Shots Fired 135 | 16 76 . 43 Gun 108 | 16 64 . 28 Cannon 27 | . 12 . 15 Launcher . | . . . . Special . | . . . . Kinetic 17 | . . . 17 Thermal 118 | 16 76 . 26 Explosive . | . . . . Electromagnetic . | . . . . Robot Hit Streak 18 | 9 5 . 18 Robot Miss Streak 5 | 1 5 . 1 Penetration Max . | . . . . Secondary Targets . | . . . . Shots Hit Robots 89 | 12 41 . 36 Core Hits 29 | 5 14 . 10 Critical Kills . | . . . . Critical Parts Destroyed . | . . . . Critical Strikes 2 | . 1 . 1 Burn 2 | . 1 . 1 Melee Attacks . | . . . . Impact . | . . . . Slashing . | . . . . Piercing . | . . . . Sneak Attacks . | . . . . Combat Hostiles . | . . . . Follow-up Attacks . | . . . . Damage Inflicted 1162 | 152 592 . 418 Guns 826 | 152 451 . 223 Cannons 336 | . 141 . 195 Explosions . | . . . . Melee . | . . . . Ramming . | . . . . Kinetic 231 | . . . 231 Thermal 931 | 152 592 . 187 Explosive . | . . . . Electromagnetic . | . . . . Impact . | . . . . Slashing . | . . . . Piercing . | . . . . Highest Corruption . | . . . . Average Corruption . | . . . . Corruption Purged . | . . . . Corruption Blocked . | . . . . Overload Shots . | . . . . Overflow Damage . | . . . . Projectiles . | . . . . Explosions . | . . . . Melee . | . . . . Knockbacks 3 | . . . 3 Impact . | . . . . Kinetic 2 | . . . 2 Secondary 1 | . . . 1 Self-Inflicted Damage . | . . . . Shots . | . . . . Rammed . | . . . . Targets Rammed . | . . . . Kicked . | . . . . Crushed . | . . . . Highest Temperature 353 | 60 353 . 14 Average Temperature 93 | 27 114 . 6 Received Heat Transfer 273 | . 117 . 156 Siege Activations . | . . . . Martial Activations . | . . . . Shielding Activations . | . . . . Robots Disrupted . | . . . . Combat Hostiles . | . . . . Robots Corrupted . | . . . . Combat Hostiles . | . . . . Parts Fried . | . . . . Impact Corruptions . | . . . . Robots Melted . | . . . . Combat Hostiles . | . . . . Parts Melted 4 | . 2 . 2 Heat Transferred 2561 | 397 1609 . 555 Parts Sabotaged . | . . . . Parts Stolen . | . . . . Parts Stripped . | . . . . Power Chain Reactions . | . . . . Alert | -11 -10 -10 -10 ------- Run | Yrd Mat Min Sub Maximum Alert Level . | . . . . Low Security (%) 100 | 100 100 100 . Level 1 . | . . . . Level 2 . | . . . . Level 3 . | . . . . Level 4 . | . . . . Level 5 . | . . . . High Security . | . . . . Max Security . | . . . . Peak Influence 78 | 5 78 . . Initial 3 | . 3 . . Average 10 | 1 18 . . Influence Increases 234 | 20 214 . . Destroy 0b10 Robot/C 140 | . 140 . . Destroy 0b10 Robot/NC 35 | 20 15 . . Destroy Leader 32 | . 32 . . Successful Hack 11 | . 11 . . Destroy Structure 1 | . 1 . . Lose Combat Pursuer 15 | . 15 . . Influence Decreases 234 | 15 219 . . Entered New Map 2 | . 2 . . Time Decay 222 | 15 207 . . Lost Part 10 | . 10 . . Squads Dispatched 1 | . 1 . . Investigation . | . . . . Extermination . | . . . . Reinforcement 1 | . 1 . . Assault . | . . . . Garrison . | . . . . Intercept . | . . . . Searches Triggered . | . . . . Construction Impeded . | . . . . Haulers Reinforced . | . . . . Active Scanning Responses . | . . . . Cargo Convoy Interrupts . | . . . . Stealth | -11 -10 -10 -10 --------- Run | Yrd Mat Min Sub Distress Signals 2 | . 2 . . Communications Jammed . | . . . . Distress Signals . | . . . . Times Spotted 25 | . 19 . 6 Peak Tracking Total 5 | . 5 . 3 Tactical Retreats 1 | . 1 . . Traps | -11 -10 -10 -10 ------- Run | Yrd Mat Min Sub Traps Triggered . | . . . . Indirectly . | . . . . Trap Hack Attempts . | . . . . Triggered . | . . . . Disarmed . | . . . . Reprogrammed . | . . . . Reused . | . . . . Traps Extracted . | . . . . Installed . | . . . . Triggered . | . . . . Machines | -11 -10 -10 -10 ---------- Run | Yrd Mat Min Sub Machines Disabled . | . . . . Max in Single Turn . | . . . . Machines Repaired . | . . . . Machines Dismantled . | . . . . Machines Sabotaged . | . . . . Overloaded Fab Kills . | . . . . Hacking | -11 -10 -10 -10 --------- Run | Yrd Mat Min Sub Machines Accessed 6 | . 4 . 2 Terminals 3 | . 3 . . Fabricators . | . . . . Repair Stations . | . . . . Recycling Units 1 | . 1 . . Scanalyzers . | . . . . Garrison Access . | . . . . Total Hacks 14 | . 9 . 5 Successful 10 | . 5 . 5 Failed 4 | . 4 . . Catastrophic 1 | . 1 . . Database Lockouts . | . . . . Manual 7 | . 7 . . Terminals 7 | . 7 . . Fabricators . | . . . . Repair Stations . | . . . . Recycling Units 2 | . 2 . . Scanalyzers . | . . . . Garrison Access . | . . . . Terminal Hacks 7 | . 2 . 5 Record 4 | . . . 4 Robot Analysis 1 | . 1 . . Open Door 1 | . . . 1 Zone Layout 1 | . 1 . . Fabricator Hacks . | . . . . Repair Station Hacks . | . . . . Recycling Unit Hacks 1 | . 1 . . Report Inventory 1 | . 1 . . Scanalyzer . | . . . . Garrison Access Hacks . | . . . . Unauthorized Hacks 2 | . 2 . . Terminals 1 | . 1 . . Botnet 1 | . 1 . . Fabricators . | . . . . Repair Stations . | . . . . Recycling Units 1 | . 1 . . Recyclers 1 | . 1 . . Scanalyzers . | . . . . Garrison Access . | . . . . Data Cores Recovered 1 | . 1 . . Used 1 | . 1 . . Hacking Detections 3 | . 3 . . Full Trace Events . | . . . . Feedback Events . | . . . . Feedback Blocked . | . . . . Robot Schematics Acquired . | . . . . Robots Built . | . . . . Authchips . | . . . . Time . | . . . . Total Robot Build Rating . | . . . . Part Schematics Acquired . | . . . . Parts Built . | . . . . Authchips . | . . . . Time . | . . . . Total Part Build Rating . | . . . . Part Studies Acquired . | . . . . Parts Repaired . | . . . . Time . | . . . . Parts Recycled . | . . . . Recycled Matter . | . . . . Retrieved Matter . | . . . . Retrieved Components . | . . . . Parts Scanalyzed . | . . . . Part Schematics Acquired . | . . . . Parts Damaged . | . . . . Bothacking | -11 -10 -10 -10 ------------ Run | Yrd Mat Min Sub Used RIF Installer . | . . . . Robots Hacked . | . . . . Non-combat . | . . . . Combat . | . . . . Robot Hacks Applied . | . . . . Relay Couplers Released . | . . . . Fabnet Peak Effective % . | . . . . Robots Rewired . | . . . . Allies Hacked . | . . . . Hacks Repelled . | . . . . Allies | -11 -10 -10 -10 -------- Run | Yrd Mat Min Sub Total Allies . | . . . . Largest Group . | . . . . Highest-Rated Group . | . . . . Highest-Rated Ally . | . . . . Total Orders . | . . . . Ally Attacks . | . . . . Total Damage . | . . . . Kills . | . . . . Allies Corrupted . | . . . . Allies Melted . | . . . . Intel | -11 -10 -10 -10 ------- Run | Yrd Mat Min Sub Active Infowar (turns) 3318 | 52 957 773 1536 Structural 1248 | . . . 1248 Seismic 2070 | 52 957 773 288 Robot Analysis Total 1 | . 1 . . Derelict Logs Recovered 3 | . . 1 2 Drone Launches . | . . . . Drone Recoveries . | . . . . Exploration | -11 -10 -10 -10 ------------- Run | Yrd Mat Min Sub Turns Passed 3494 | 114 1069 775 1536 Spaces Moved 1368 | 44 404 313 607 Core . | . . . . Treads 1368 | 44 404 313 607 Legs . | . . . . Wheels . | . . . . Hover . | . . . . Flight . | . . . . Fastest Speed 160 | 160 160 240 240 Average Speed 233 | 160 226 240 240 Slowest Speed 240 | 160 240 240 240 Overloaded Moves . | . . . . Propulsion Burnouts . | . . . . Robots Hopped . | . . . . Potential Cave-ins . | . . . . Cave-ins Triggered . | . . . . Exploration Rate (%) 35 | 4 50 47 41 Regions Visited 3 Branch Regions 2 Pre-discovered Areas 4 | . . 1 3 Known Exits Taken . | . . . . Unknown Exits Taken 3 | 1 1 1 . Scrap Searched . | . . . . Spaces Dug . | . . . . Terrain Destroyed . | . . . . Melee . | . . . . Projectile . | . . . . AOE . | . . . . Terrain Rammed . | . . . . Walls Destroyed . | . . . . Machines Disabled . | . . . . Actions | -11 -10 -10 -10 --------- Run | Yrd Mat Min Sub Total 1547 | 74 487 342 644 Wait 48 | 10 25 13 . Move 1365 | 43 403 312 607 Hop . | . . . . Pick Up 31 | 5 14 8 4 Fast Attach 2 | 1 . . 1 Attach 7 | . 2 1 4 Detach . | . . . . Swap 8 | 3 1 2 2 Drop 17 | 4 4 6 3 Fire 68 | 8 38 . 22 Melee . | . . . . Ram . | . . . . Kick . | . . . . Crush . | . . . . Escape Stasis . | . . . . Rewire 1 | . . . 1 Trap . | . . . . Miscellaneous . | . . . . Route ------- -11/Scrapyard -10/Materials -10/Mines (discovered 2 exits: [*Mat] / *Sub) -10/Subcaves History --------- Turn | Location | Event 6 | -11/Scrapyard | Discovered new exit (range 3) 115 | -11/Scrapyard | Entered Materials 306 | -10/Materials | Build established: Mutant 861 | -10/Materials | Discovered new exit (range 11) 1184 | -10/Materials | Entered Mines 1189 | -10/Mines | Met a Derelict bent on vengeance 1191 | -10/Mines | Received a Rocket Launcher from a helpful Derelict 1276 | -10/Mines | Found a damaged Exp. Sensor Array with a note attached 1282 | -10/Mines | Found Prototype Device 1292 | -10/Mines | Learned location of Zion (-7) 1295 | -10/Mines | Identified Exp. Sensor Array 1592 | -10/Mines | Discovered new exit (range 15) 1635 | -10/Mines | Discovered new exit (range 11) 1959 | -10/Mines | Entered Subcaves 1960 | -10/Subcaves | Approached by a straggling Scientist 2127 | -10/Subcaves | Learned location of Recycling (-8) 2729 | -10/Subcaves | Visited Clippyterm 2736 | -10/Subcaves | Learned location of Deep Caves (-7) 2736 | -10/Subcaves | Learned location of Section 7 (-2) 3402 | -10/Subcaves | Learned 2 Materials zone layouts 3432 | -10/Subcaves | A swath of the cavern ceiling suddenly collapsed 3459 | -10/Subcaves | A Subdweller sparked back to life 3459 | -10/Subcaves | A Subdweller sparked back to life 3459 | -10/Subcaves | A Subdweller sparked back to life 3474 | -10/Subcaves | Core integrity fell below 50% 3481 | -10/Subcaves | Core integrity fell below 20% 3495 | -10/Subcaves | Destroyed by NW-ZL1(R) with Subdweller Laser Last Messages --------------- 03435_ Acquired Battle Cannon. 03438_ Attempting to rewire 2T-MKP(R). 03438_ 2T-MKP(R) is broken beyond repair. 03443_ Subatomizers dissect the Ion Engine, destroying it. 03459_ NW-ZL1(R) creaks and sparks as it begins to move. 03459_ O2-8BF(R) creaks and sparks as it begins to move. 03459_ 2T-MKP(R) creaks and sparks as it begins to move. 03469_ Lgt. Treads destroyed. 03474_ Beam Cannon destroyed. 03476_ Ion Engine destroyed. 03477_ Med. Laser destroyed. 03481_ Lgt. Treads destroyed. 03482_ 2T-MKP(R) knocked back. 03482_ Sub. Power Source melted. 03482_ 2T-MKP(R) destroyed. 03491_ O2-8BF(R) knocked back. 03491_ Critical hit (Destroy). 03491_ Battle Cannon destroyed. 03492_ Subatomizers dissect the Sub. Optics. 03493_ O2-8BF(R) affixes Scrap Shield Fragment to Scrap Shield. Map ----- +----------------------------------------------------+ | ????????????????### ##### ### ?????????????? | | ????????????????### ############# ????????????? | | ????????????????## ##?#### #### ????????????? | | ????????????????### ##?????????????????????????? | | ????????????????### ##?????????????????????????? | | ????????????????## ##?????????????????????????? | | ????????????????### ##?????????????????????????? | | ????????????????### ##?????????????????????????? | | ?????????????????## ##?????????????????????????? | | ?????????????????## ##?????????????????????????? | | ?????????????????## ###????????????????????????? | | ???????????????#### ###????????????????????????? | | ??????????????###### ###???????????????????????? | | ??????????????### ####???????????????????????? | | ??????????????## # ##???????????????????????? | | ??????????????### # ##???????????????????????? | | ??????????????### ## ##???????????????????????? | | ??????????????### ###???????????????????????? | | ?????????????### ## ##???????????????????????? | | ?????????????### ######???????????????????? | | ?????????????## #######???????????????????? | | ?????????????## #!; <##???????????????????? | | ?????????????### ###%|<< R<##???????????????????? | | ?????????????#### ## %&%R %##???????????????????? | | ??????????????###### %